[Event "Titled Tuesday Blitz October 12 2021"]
[White "Erdogdu, Mert"]
[Black "Kislov, Oleg"]
[WhiteFideId "6301495"]
[BlackFideId "13503774"]
[WhiteElo "2485"]
[BlackElo "2252"]
[Result "1-0"]
[Round "11"]
[TimeControl "180+1"]
[Date "2021.10.12"]
[WhiteClock "0:00:08"]
[BlackClock "0:00:02"]

1. e4 {[%clk 0:03:00]}  e6 {[%clk 0:02:59]} 2. d4 {[%clk 0:03:00]}  d5 {[%clk 0:02:59]} 3. exd5 {[%clk 0:03:01]}  exd5 {[%clk 0:02:58]} 4. c4 {[%clk 0:03:01]}  Nf6 {[%clk 0:02:58]} 5. Nc3 {[%clk 0:03:00]}  Bb4 {[%clk 0:02:58]} 6. Bd3 {[%clk 0:02:59]}  O-O {[%clk 0:02:57]} 7. Ne2 {[%clk 0:02:59]}  dxc4 {[%clk 0:02:53]} 8. Bxc4 {[%clk 0:03:00]}  Nbd7 {[%clk 0:02:24]} 9. O-O {[%clk 0:02:59]}  Nb6 {[%clk 0:02:24]} 10. Bb3 {[%clk 0:02:59]}  Nbd5 {[%clk 0:02:23]} 11. Bg5 {[%clk 0:02:54]}  Be7 {[%clk 0:02:05]} 12. Qd3 {[%clk 0:02:43]}  c6 {[%clk 0:02:02]} 13. Rad1 {[%clk 0:02:42]}  Bg4 {[%clk 0:01:56]} 14. Rfe1 {[%clk 0:02:17]}  Bh5 {[%clk 0:01:53]} 15. Qh3 {[%clk 0:02:06]}  Bg6 {[%clk 0:01:47]} 16. Ng3 {[%clk 0:01:57]}  h6 {[%clk 0:01:35]} 17. Bc1 {[%clk 0:01:48]}  Bb4 {[%clk 0:01:32]} 18. Bd2 {[%clk 0:01:29]}  Qa5 {[%clk 0:01:23]} 19. Re5 {[%clk 0:01:18]}  Rfe8 {[%clk 0:00:49]} 20. Rde1 {[%clk 0:01:16]}  Rxe5 {[%clk 0:00:26]} 21. dxe5 {[%clk 0:01:12]}  Bxc3 {[%clk 0:00:22]} 22. bxc3 {[%clk 0:01:10]}  Ne8 {[%clk 0:00:16]} 23. f4 {[%clk 0:01:05]}  Qc5+ {[%clk 0:00:15]} 24. Kh1 {[%clk 0:00:54]}  Bd3 {[%clk 0:00:14]} 25. Qg4 {[%clk 0:00:44]}  Qf2 {[%clk 0:00:14]} 26. Qd1 {[%clk 0:00:14]}  Rd8 {[%clk 0:00:12]} 27. Nh5 {[%clk 0:00:08]}  Bg6 {[%clk 0:00:11]} 28. Ng3 {[%clk 0:00:08]}  Nxf4 {[%clk 0:00:11]} 29. Rg1 {[%clk 0:00:05]}  Rxd2 {[%clk 0:00:11]} 30. Qg4 {[%clk 0:00:06]}  Kh7 {[%clk 0:00:08]} 31. h4 {[%clk 0:00:04]}  Nxg2 {[%clk 0:00:09]} 32. h5 {[%clk 0:00:04]}  Nf4 {[%clk 0:00:09]} 33. hxg6+ {[%clk 0:00:03]}  Nxg6 {[%clk 0:00:08]} 34. Nf1 {[%clk 0:00:03]}  Nxe5 {[%clk 0:00:06]} 35. Qe4+ {[%clk 0:00:03]}  Ng6 {[%clk 0:00:07]} 36. Qg4 {[%clk 0:00:03]}  Nf6 {[%clk 0:00:06]} 37. Qh3 {[%clk 0:00:02]}  Rd6 {[%clk 0:00:03]} 38. Bxf7 {[%clk 0:00:02]}  Nf4 {[%clk 0:00:03]} 39. Qg3 {[%clk 0:00:02]}  g5 {[%clk 0:00:03]} 40. Qxf2 {[%clk 0:00:02]}  Nh3 {[%clk 0:00:03]} 41. Qc2+ {[%clk 0:00:02]}  Kg7 {[%clk 0:00:03]} 42. Qf5 {[%clk 0:00:02]}  Nxg1 {[%clk 0:00:02]} 43. Qg6+ {[%clk 0:00:02]}  Kf8 {[%clk 0:00:02]} 44. Kxg1 {[%clk 0:00:02]}  Ke7 {[%clk 0:00:03]} 45. Bg8 {[%clk 0:00:02]}  Nxg8 {[%clk 0:00:02]} 46. Qg7+ {[%clk 0:00:03]}  Ke6 {[%clk 0:00:01]} 47. Qxg8+ {[%clk 0:00:04]}  Ke5 {[%clk 0:00:01]} 48. Qb8 {[%clk 0:00:04]}  Kd5 {[%clk 0:00:01]} 49. Qxb7 {[%clk 0:00:05]}  Kc5 {[%clk 0:00:01]} 50. Qb4+ {[%clk 0:00:05]}  Kd5 {[%clk 0:00:01]} 51. Qd4+ {[%clk 0:00:05]}  Ke6 {[%clk 0:00:02]} 52. Qe4+ {[%clk 0:00:06]}  Kd7 {[%clk 0:00:02]} 53. Ne3 {[%clk 0:00:07]}  Re6 {[%clk 0:00:02]} 54. Qd4+ {[%clk 0:00:08]}  Rd6 {[%clk 0:00:02]} 55. Qxa7+ {[%clk 0:00:08]}  Ke6 {[%clk 0:00:02]} 56. Nc4 {[%clk 0:00:09]}  Rd1+ {[%clk 0:00:02]} 57. Kf2 {[%clk 0:00:09]}  Kf5 {[%clk 0:00:02]} 58. Ne3+ {[%clk 0:00:08]} 1-0


[Site "https://www.chess.com"]

[Event "Titled Tuesday Blitz October 12 2021"]
[White "Khademalsharieh, Sarasadat"]
[Black "Zarnicki, Pablo"]
[WhiteFideId "12512214"]
[BlackFideId "100137"]
[WhiteElo "2431"]
[BlackElo "2467"]
[Result "1-0"]
[Round "11"]
[TimeControl "180+1"]
[Date "2021.10.12"]
[WhiteClock "0:00:33"]
[BlackClock "0:00:03"]

1. d4 {[%clk 0:02:57]}  Nf6 {[%clk 0:02:59]} 2. c4 {[%clk 0:02:57]}  g6 {[%clk 0:02:57]} 3. Nf3 {[%clk 0:02:58]}  Bg7 {[%clk 0:02:57]} 4. g3 {[%clk 0:02:58]}  O-O {[%clk 0:02:57]} 5. Bg2 {[%clk 0:02:58]}  d6 {[%clk 0:02:57]} 6. O-O {[%clk 0:02:58]}  c6 {[%clk 0:02:57]} 7. Nc3 {[%clk 0:02:58]}  Bf5 {[%clk 0:02:57]} 8. Ng5 {[%clk 0:02:56]}  h6 {[%clk 0:02:55]} 9. e4 {[%clk 0:02:56]}  Bg4 {[%clk 0:02:53]} 10. f3 {[%clk 0:02:56]}  Bc8 {[%clk 0:02:50]} 11. Nh3 {[%clk 0:02:56]}  e5 {[%clk 0:02:50]} 12. dxe5 {[%clk 0:02:50]}  dxe5 {[%clk 0:02:50]} 13. Be3 {[%clk 0:02:51]}  Nbd7 {[%clk 0:02:49]} 14. Nf2 {[%clk 0:02:49]}  Qe7 {[%clk 0:02:49]} 15. Qc2 {[%clk 0:02:45]}  Nc5 {[%clk 0:02:48]} 16. b4 {[%clk 0:02:43]}  Ne6 {[%clk 0:02:48]} 17. c5 {[%clk 0:02:37]}  Nd4 {[%clk 0:02:37]} 18. Bxd4 {[%clk 0:02:31]}  exd4 {[%clk 0:02:36]} 19. Ne2 {[%clk 0:02:32]}  Rd8 {[%clk 0:02:35]} 20. Rad1 {[%clk 0:02:32]}  a5 {[%clk 0:02:30]} 21. a3 {[%clk 0:02:31]}  axb4 {[%clk 0:02:30]} 22. axb4 {[%clk 0:02:32]}  Ne8 {[%clk 0:02:29]} 23. f4 {[%clk 0:02:28]}  Nc7 {[%clk 0:02:27]} 24. e5 {[%clk 0:02:27]}  Nb5 {[%clk 0:02:15]} 25. Qb2 {[%clk 0:02:11]}  f6 {[%clk 0:02:05]} 26. Nxd4 {[%clk 0:02:10]}  Nxd4 {[%clk 0:02:00]} 27. Rxd4 {[%clk 0:02:10]}  Rxd4 {[%clk 0:02:00]} 28. Qxd4 {[%clk 0:02:09]}  fxe5 {[%clk 0:02:01]} 29. Qe3 {[%clk 0:02:02]}  Bf5 {[%clk 0:01:54]} 30. g4 {[%clk 0:02:01]}  Bd7 {[%clk 0:01:48]} 31. Nd3 {[%clk 0:01:51]}  Bxg4 {[%clk 0:01:44]} 32. fxe5 {[%clk 0:01:45]}  Bf5 {[%clk 0:01:40]} 33. Be4 {[%clk 0:01:13]}  Bxe5 {[%clk 0:01:37]} 34. Re1 {[%clk 0:01:01]}  Rd8 {[%clk 0:00:57]} 35. Kh1 {[%clk 0:00:51]}  Bxe4+ {[%clk 0:00:26]} 36. Qxe4 {[%clk 0:00:51]}  Bf6 {[%clk 0:00:16]} 37. Qxg6+ {[%clk 0:00:48]}  Qg7 {[%clk 0:00:16]} 38. Qf5 {[%clk 0:00:44]}  Kh8 {[%clk 0:00:13]} 39. Rg1 {[%clk 0:00:43]}  Qf7 {[%clk 0:00:13]} 40. Nf4 {[%clk 0:00:37]}  Re8 {[%clk 0:00:03]} 41. Ng6+ {[%clk 0:00:36]}  Kh7 {[%clk 0:00:03]} 42. Ne5+ {[%clk 0:00:33]}  Kh8 {[%clk 0:00:03]} 43. Nxf7# {[%clk 0:00:33]} 1-0


[Site "https://www.chess.com"]

[Event "Titled Tuesday Blitz October 12 2021"]
[White "King, Alexander"]
[Black "Salinas Herrera, Pablo"]
[WhiteFideId "2063620"]
[BlackFideId "3407128"]
[WhiteElo "2306"]
[BlackElo "2541"]
[Result "0-1"]
[Round "11"]
[TimeControl "180+1"]
[Date "2021.10.12"]
[WhiteClock "0:00:01"]
[BlackClock "0:00:06"]

1. d4 {[%clk 0:03:00]}  d5 {[%clk 0:02:59]} 2. c4 {[%clk 0:03:01]}  c6 {[%clk 0:02:59]} 3. Nf3 {[%clk 0:03:01]}  Nf6 {[%clk 0:03:00]} 4. e3 {[%clk 0:03:02]}  e6 {[%clk 0:02:59]} 5. b3 {[%clk 0:03:02]}  Nbd7 {[%clk 0:03:00]} 6. Bd3 {[%clk 0:03:02]}  b6 {[%clk 0:03:00]} 7. O-O {[%clk 0:03:02]}  Bb7 {[%clk 0:03:00]} 8. Bb2 {[%clk 0:03:03]}  Be7 {[%clk 0:03:01]} 9. Nc3 {[%clk 0:03:01]}  O-O {[%clk 0:03:01]} 10. e4 {[%clk 0:02:56]}  dxe4 {[%clk 0:03:00]} 11. Nxe4 {[%clk 0:02:57]}  c5 {[%clk 0:03:01]} 12. Nxf6+ {[%clk 0:02:45]}  Bxf6 {[%clk 0:02:59]} 13. Qe2 {[%clk 0:02:42]}  Bxf3 {[%clk 0:02:58]} 14. Qxf3 {[%clk 0:02:38]}  Bxd4 {[%clk 0:02:58]} 15. Qe2 {[%clk 0:01:49]}  Bxb2 {[%clk 0:02:56]} 16. Qxb2 {[%clk 0:01:49]}  Nf6 {[%clk 0:02:55]} 17. Rad1 {[%clk 0:01:48]}  Qc7 {[%clk 0:02:55]} 18. Rd2 {[%clk 0:01:43]}  Rad8 {[%clk 0:02:55]} 19. Rfd1 {[%clk 0:01:44]}  Rd4 {[%clk 0:02:55]} 20. Be2 {[%clk 0:01:36]}  e5 {[%clk 0:02:55]} 21. Rxd4 {[%clk 0:01:31]}  exd4 {[%clk 0:02:55]} 22. Bf3 {[%clk 0:01:31]}  Re8 {[%clk 0:02:55]} 23. Qd2 {[%clk 0:01:30]}  g6 {[%clk 0:02:54]} 24. g3 {[%clk 0:01:30]}  Qe5 {[%clk 0:02:48]} 25. b4 {[%clk 0:01:23]}  cxb4 {[%clk 0:01:47]} 26. Qxb4 {[%clk 0:01:23]}  Rd8 {[%clk 0:01:42]} 27. Qa4 {[%clk 0:01:16]}  a5 {[%clk 0:01:38]} 28. Qc6 {[%clk 0:01:09]}  Rd6 {[%clk 0:01:35]} 29. Qc8+ {[%clk 0:00:59]}  Kg7 {[%clk 0:01:34]} 30. Rd3 {[%clk 0:01:00]}  Nd7 {[%clk 0:01:15]} 31. Bd5 {[%clk 0:00:38]}  Nc5 {[%clk 0:01:13]} 32. Rf3 {[%clk 0:00:19]}  Rxd5 {[%clk 0:00:30]} 33. cxd5 {[%clk 0:00:20]}  Qxd5 {[%clk 0:00:31]} 34. Ra3 {[%clk 0:00:20]}  d3 {[%clk 0:00:26]} 35. Qg4 {[%clk 0:00:20]}  d2 {[%clk 0:00:15]} 36. Qd1 {[%clk 0:00:20]}  Qd4 {[%clk 0:00:15]} 37. Re3 {[%clk 0:00:13]}  Ne4 {[%clk 0:00:10]} 38. Rxe4 {[%clk 0:00:13]}  Qxe4 {[%clk 0:00:10]} 39. Qxd2 {[%clk 0:00:14]}  Qe6 {[%clk 0:00:06]} 40. h4 {[%clk 0:00:11]}  h5 {[%clk 0:00:06]} 41. Qc3+ {[%clk 0:00:09]}  Qf6 {[%clk 0:00:06]} 42. Qb3 {[%clk 0:00:09]}  Qd4 {[%clk 0:00:06]} 43. Kg2 {[%clk 0:00:05]}  a4 {[%clk 0:00:07]} 44. Qb5 {[%clk 0:00:03]}  a3 {[%clk 0:00:06]} 45. Qb3 {[%clk 0:00:03]}  Qb2 {[%clk 0:00:06]} 46. Qd5 {[%clk 0:00:02]}  b5 {[%clk 0:00:07]} 47. g4 {[%clk 0:00:03]}  hxg4 {[%clk 0:00:07]} 48. h5 {[%clk 0:00:03]}  b4 {[%clk 0:00:04]} 49. hxg6 {[%clk 0:00:03]}  Kxg6 {[%clk 0:00:05]} 50. Qe4+ {[%clk 0:00:03]}  f5 {[%clk 0:00:05]} 51. Qe8+ {[%clk 0:00:03]}  Kg5 {[%clk 0:00:05]} 52. Qg8+ {[%clk 0:00:03]}  Kf4 {[%clk 0:00:05]} 53. Qb8+ {[%clk 0:00:02]}  Ke4 {[%clk 0:00:06]} 54. Qb7+ {[%clk 0:00:02]}  Kd3 {[%clk 0:00:06]} 55. Qd5+ {[%clk 0:00:02]}  Kc2 {[%clk 0:00:04]} 56. Qxf5+ {[%clk 0:00:02]}  Kc1 {[%clk 0:00:04]} 57. Qxg4 {[%clk 0:00:01]}  Kb1 {[%clk 0:00:05]} 58. Qe4+ {[%clk 0:00:02]}  Kxa2 {[%clk 0:00:05]} 59. Qc4+ {[%clk 0:00:01]}  b3 {[%clk 0:00:06]} 60. Kg3 {[%clk 0:00:01]}  Qg7+ {[%clk 0:00:05]} 61. Kf3 {[%clk 0:00:01]}  Qf6+ {[%clk 0:00:06]} 62. Ke4 {[%clk 0:00:01]}  Qe7+ {[%clk 0:00:06]} 0-1


[Site "https://www.chess.com"]

[Event "Titled Tuesday Blitz October 12 2021"]
[White "Kovalev, Vladislav"]
[Black "Aldokhin, Ivan"]
[WhiteFideId "13504398"]
[BlackFideId "24115720"]
[WhiteElo "2573"]
[BlackElo "2231"]
[Result "1-0"]
[Round "11"]
[TimeControl "180+1"]
[Date "2021.10.12"]
[WhiteClock "0:00:17"]
[BlackClock "0:00:08"]

1. e4 {[%clk 0:03:00]}  c5 {[%clk 0:02:59]} 2. Be2 {[%clk 0:03:01]}  Nc6 {[%clk 0:02:56]} 3. d3 {[%clk 0:03:01]}  Nf6 {[%clk 0:02:54]} 4. f4 {[%clk 0:03:02]}  d6 {[%clk 0:02:49]} 5. Nf3 {[%clk 0:03:02]}  g6 {[%clk 0:02:50]} 6. O-O {[%clk 0:03:02]}  Bg7 {[%clk 0:02:50]} 7. Kh1 {[%clk 0:03:02]}  O-O {[%clk 0:02:51]} 8. Qe1 {[%clk 0:03:03]}  c4 {[%clk 0:02:46]} 9. Nc3 {[%clk 0:03:01]}  cxd3 {[%clk 0:02:41]} 10. cxd3 {[%clk 0:03:02]}  Bd7 {[%clk 0:02:15]} 11. Qh4 {[%clk 0:02:54]}  Qa5 {[%clk 0:02:13]} 12. Bd2 {[%clk 0:02:34]}  Qh5 {[%clk 0:02:11]} 13. Qg3 {[%clk 0:02:33]}  Bg4 {[%clk 0:01:57]} 14. h3 {[%clk 0:02:20]}  Bxf3 {[%clk 0:01:41]} 15. Bxf3 {[%clk 0:02:19]}  Qa5 {[%clk 0:01:37]} 16. Qf2 {[%clk 0:02:05]}  Nb4 {[%clk 0:01:32]} 17. Be2 {[%clk 0:01:48]}  Nc6 {[%clk 0:00:58]} 18. Rac1 {[%clk 0:01:44]}  Rfe8 {[%clk 0:00:56]} 19. f5 {[%clk 0:01:42]}  Rac8 {[%clk 0:00:54]} 20. g4 {[%clk 0:01:12]}  Rf8 {[%clk 0:00:54]} 21. g5 {[%clk 0:00:54]}  Nd7 {[%clk 0:00:53]} 22. f6 {[%clk 0:00:45]}  exf6 {[%clk 0:00:49]} 23. Bg4 {[%clk 0:00:46]}  Nce5 {[%clk 0:00:30]} 24. Bxd7 {[%clk 0:00:30]}  Rcd8 {[%clk 0:00:20]} 25. gxf6 {[%clk 0:00:25]}  Bxf6 {[%clk 0:00:14]} 26. Nd5 {[%clk 0:00:23]}  Qa6 {[%clk 0:00:11]} 27. Nxf6+ {[%clk 0:00:22]}  Kg7 {[%clk 0:00:12]} 28. Qh4 {[%clk 0:00:17]}  h5 {[%clk 0:00:08]} 29. Nxh5+ {[%clk 0:00:17]} 1-0


[Site "https://www.chess.com"]

[Event "Titled Tuesday Blitz October 12 2021"]
[White "Le, Tuan Minh"]
[Black "Djordjevic, Vuk"]
[WhiteFideId "12401153"]
[BlackFideId "902098"]
[WhiteElo "2450"]
[BlackElo "2463"]
[Result "1-0"]
[Round "11"]
[TimeControl "180+1"]
[Date "2021.10.12"]
[WhiteClock "0:01:58"]
[BlackClock "0:00:05"]

1. d4 {[%clk 0:03:00]}  Nf6 {[%clk 0:02:59]} 2. Nf3 {[%clk 0:03:00]}  e6 {[%clk 0:02:59]} 3. Bf4 {[%clk 0:03:00]}  d5 {[%clk 0:02:59]} 4. e3 {[%clk 0:02:58]}  Bd6 {[%clk 0:03:00]} 5. Bg3 {[%clk 0:02:57]}  O-O {[%clk 0:03:00]} 6. c4 {[%clk 0:02:56]}  b6 {[%clk 0:02:49]} 7. Nc3 {[%clk 0:02:56]}  Ba6 {[%clk 0:02:45]} 8. Qa4 {[%clk 0:02:48]}  Bxg3 {[%clk 0:02:28]} 9. hxg3 {[%clk 0:02:48]}  c6 {[%clk 0:02:28]} 10. Qc2 {[%clk 0:02:35]}  Bxc4 {[%clk 0:02:10]} 11. Bxc4 {[%clk 0:02:30]}  dxc4 {[%clk 0:02:10]} 12. g4 {[%clk 0:02:31]}  g6 {[%clk 0:01:51]} 13. g5 {[%clk 0:02:31]}  Nd5 {[%clk 0:01:52]} 14. Ne4 {[%clk 0:02:30]}  b5 {[%clk 0:01:40]} 15. Ke2 {[%clk 0:02:23]}  Nd7 {[%clk 0:01:36]} 16. Rh3 {[%clk 0:02:20]}  f5 {[%clk 0:01:11]} 17. gxf6 {[%clk 0:02:20]}  N7xf6 {[%clk 0:01:08]} 18. Neg5 {[%clk 0:02:21]}  Qe8 {[%clk 0:00:35]} 19. Rah1 {[%clk 0:02:12]}  h5 {[%clk 0:00:35]} 20. Ne5 {[%clk 0:02:11]}  Ne7 {[%clk 0:00:16]} 21. g4 {[%clk 0:02:07]}  Kg7 {[%clk 0:00:06]} 22. Nxe6+ {[%clk 0:02:07]}  Kg8 {[%clk 0:00:05]} 23. gxh5 {[%clk 0:02:07]}  g5 {[%clk 0:00:04]} 24. Rg3 {[%clk 0:02:06]}  Nh7 {[%clk 0:00:04]} 25. Nxg5 {[%clk 0:01:59]}  Nxg5 {[%clk 0:00:04]} 26. Rxg5+ {[%clk 0:02:00]}  Kh8 {[%clk 0:00:04]} 27. Ng6+ {[%clk 0:02:01]}  Nxg6 {[%clk 0:00:04]} 28. hxg6+ {[%clk 0:02:01]}  Kg8 {[%clk 0:00:05]} 29. g7 {[%clk 0:01:58]} 1-0


[Site "https://www.chess.com"]

[Event "Titled Tuesday Blitz October 12 2021"]
[White "Matamoros Franco, Carlos S."]
[Black "Tristan, Leonardo"]
[WhiteFideId "3600017"]
[BlackFideId "113816"]
[WhiteElo "2554"]
[BlackElo "2404"]
[Result "0-1"]
[Round "11"]
[TimeControl "180+1"]
[Date "2021.10.12"]
[WhiteClock "0:00:12"]
[BlackClock "0:00:55"]

1. Nf3 {[%clk 0:03:00]}  d5 {[%clk 0:03:00]} 2. g3 {[%clk 0:03:00]}  Nd7 {[%clk 0:03:00]} 3. Bg2 {[%clk 0:02:59]}  e5 {[%clk 0:03:01]} 4. O-O {[%clk 0:02:59]}  Ngf6 {[%clk 0:03:01]} 5. c4 {[%clk 0:02:59]}  e4 {[%clk 0:03:01]} 6. Ne1 {[%clk 0:02:56]}  dxc4 {[%clk 0:03:02]} 7. Nc3 {[%clk 0:02:45]}  Nb6 {[%clk 0:02:55]} 8. Nxe4 {[%clk 0:02:37]}  Nxe4 {[%clk 0:02:55]} 9. Bxe4 {[%clk 0:02:38]}  Bh3 {[%clk 0:02:55]} 10. Bxb7 {[%clk 0:02:38]}  Bxf1 {[%clk 0:02:53]} 11. Kxf1 {[%clk 0:02:38]}  Rb8 {[%clk 0:02:50]} 12. Bc6+ {[%clk 0:02:38]}  Nd7 {[%clk 0:02:50]} 13. Qa4 {[%clk 0:02:32]}  Bd6 {[%clk 0:02:49]} 14. Nf3 {[%clk 0:02:21]}  Rb4 {[%clk 0:02:48]} 15. Qxa7 {[%clk 0:01:51]}  O-O {[%clk 0:02:48]} 16. Bxd7 {[%clk 0:01:51]}  Qxd7 {[%clk 0:02:48]} 17. a3 {[%clk 0:01:51]}  Rb3 {[%clk 0:02:32]} 18. Kg2 {[%clk 0:01:36]}  Re8 {[%clk 0:02:20]} 19. Qd4 {[%clk 0:01:25]}  Qc6 {[%clk 0:02:06]} 20. d3 {[%clk 0:01:12]}  cxd3 {[%clk 0:01:50]} 21. exd3 {[%clk 0:01:13]}  Bc5 {[%clk 0:01:10]} 22. Qc4 {[%clk 0:01:04]}  Re2 {[%clk 0:00:58]} 23. Qxb3 {[%clk 0:00:26]}  Rxf2+ {[%clk 0:00:57]} 24. Kh3 {[%clk 0:00:26]}  Qxf3 {[%clk 0:00:56]} 25. Bf4 {[%clk 0:00:12]}  Qh5# {[%clk 0:00:55]} 0-1


[Site "https://www.chess.com"]

[Event "Titled Tuesday Blitz October 12 2021"]
[White "Nakamura, Hikaru"]
[Black "Deac, Bogdan-Daniel"]
[WhiteFideId "2016192"]
[BlackFideId "1226380"]
[WhiteElo "2884"]
[BlackElo "2605"]
[Result "1-0"]
[Round "11"]
[TimeControl "180+1"]
[Date "2021.10.12"]
[WhiteClock "0:01:34"]
[BlackClock "0:00:01"]

1. d4 {[%clk 0:03:00]}  Nf6 {[%clk 0:02:59]} 2. c4 {[%clk 0:03:00]}  g6 {[%clk 0:02:57]} 3. Nf3 {[%clk 0:03:00]}  Bg7 {[%clk 0:02:57]} 4. e3 {[%clk 0:03:01]}  c5 {[%clk 0:02:53]} 5. d5 {[%clk 0:03:00]}  e6 {[%clk 0:02:53]} 6. Nc3 {[%clk 0:03:01]}  exd5 {[%clk 0:02:52]} 7. cxd5 {[%clk 0:03:02]}  O-O {[%clk 0:02:52]} 8. Be2 {[%clk 0:03:00]}  d6 {[%clk 0:02:52]} 9. O-O {[%clk 0:03:00]}  Na6 {[%clk 0:02:53]} 10. e4 {[%clk 0:02:58]}  Rb8 {[%clk 0:02:47]} 11. Re1 {[%clk 0:02:53]}  Re8 {[%clk 0:02:39]} 12. Bf1 {[%clk 0:02:49]}  Nc7 {[%clk 0:02:30]} 13. a4 {[%clk 0:02:46]}  a6 {[%clk 0:02:29]} 14. a5 {[%clk 0:02:41]}  Nb5 {[%clk 0:02:25]} 15. Nd2 {[%clk 0:02:33]}  Bd7 {[%clk 0:02:05]} 16. h3 {[%clk 0:02:28]}  Qc7 {[%clk 0:01:01]} 17. Bd3 {[%clk 0:02:02]}  Nh5 {[%clk 0:00:44]} 18. Ne2 {[%clk 0:01:52]}  Nf6 {[%clk 0:00:22]} 19. Qc2 {[%clk 0:01:48]}  Re7 {[%clk 0:00:12]} 20. Nc4 {[%clk 0:01:46]}  Rbe8 {[%clk 0:00:13]} 21. f3 {[%clk 0:01:46]}  h6 {[%clk 0:00:02]} 22. Bf4 {[%clk 0:01:43]}  g5 {[%clk 0:00:02]} 23. Bh2 {[%clk 0:01:43]}  Nh7 {[%clk 0:00:02]} 24. e5 {[%clk 0:01:35]}  Nf8 {[%clk 0:00:01]} 25. exd6 {[%clk 0:01:34]} 1-0


[Site "https://www.chess.com"]

[Event "Titled Tuesday Blitz October 12 2021"]
[White "Perez Ponsa, Federico"]
[Black "Lazavik, Denis"]
[WhiteFideId "117927"]
[BlackFideId "13515110"]
[WhiteElo "2672"]
[BlackElo "2436"]
[Result "0-1"]
[Round "11"]
[TimeControl "180+1"]
[Date "2021.10.12"]
[WhiteClock "0:00:14"]
[BlackClock "0:00:14"]

1. e4 {[%clk 0:02:57]}  e5 {[%clk 0:03:00]} 2. Nf3 {[%clk 0:02:57]}  Nc6 {[%clk 0:03:01]} 3. Nc3 {[%clk 0:02:58]}  Nf6 {[%clk 0:03:01]} 4. d4 {[%clk 0:02:58]}  exd4 {[%clk 0:03:01]} 5. Nxd4 {[%clk 0:02:59]}  Bb4 {[%clk 0:03:01]} 6. Nxc6 {[%clk 0:03:00]}  bxc6 {[%clk 0:03:02]} 7. Bd3 {[%clk 0:03:00]}  O-O {[%clk 0:03:02]} 8. O-O {[%clk 0:03:00]}  d5 {[%clk 0:03:03]} 9. Bd2 {[%clk 0:03:01]}  Rb8 {[%clk 0:03:03]} 10. Re1 {[%clk 0:02:58]}  Bg4 {[%clk 0:03:02]} 11. Qc1 {[%clk 0:02:56]}  Re8 {[%clk 0:03:01]} 12. exd5 {[%clk 0:02:51]}  Rxe1+ {[%clk 0:02:57]} 13. Qxe1 {[%clk 0:02:50]}  cxd5 {[%clk 0:02:57]} 14. a3 {[%clk 0:02:49]}  Bc5 {[%clk 0:02:42]} 15. b4 {[%clk 0:02:39]}  Bd4 {[%clk 0:02:36]} 16. Rb1 {[%clk 0:02:35]}  Qd7 {[%clk 0:02:32]} 17. Nb5 {[%clk 0:02:32]}  Rxb5 {[%clk 0:02:27]} 18. Bxb5 {[%clk 0:02:27]}  Qxb5 {[%clk 0:02:27]} 19. Be3 {[%clk 0:02:12]}  Bb6 {[%clk 0:02:01]} 20. Bxb6 {[%clk 0:01:49]}  axb6 {[%clk 0:02:02]} 21. Qe7 {[%clk 0:01:49]}  Qd7 {[%clk 0:02:00]} 22. Qe5 {[%clk 0:01:43]}  h6 {[%clk 0:01:57]} 23. h3 {[%clk 0:01:38]}  Bf5 {[%clk 0:01:56]} 24. Ra1 {[%clk 0:01:36]}  b5 {[%clk 0:01:48]} 25. c3 {[%clk 0:01:31]}  Bc2 {[%clk 0:01:37]} 26. Re1 {[%clk 0:01:28]}  c6 {[%clk 0:01:27]} 27. f3 {[%clk 0:01:28]}  Qa7+ {[%clk 0:01:22]} 28. Qe3 {[%clk 0:01:25]}  Qxa3 {[%clk 0:01:20]} 29. g4 {[%clk 0:01:26]}  Bg6 {[%clk 0:01:14]} 30. h4 {[%clk 0:01:26]}  h5 {[%clk 0:01:13]} 31. g5 {[%clk 0:01:20]}  Nd7 {[%clk 0:01:11]} 32. Kf2 {[%clk 0:01:20]}  Nf8 {[%clk 0:01:06]} 33. Kg3 {[%clk 0:01:20]}  Ne6 {[%clk 0:01:05]} 34. Qe5 {[%clk 0:01:21]}  d4 {[%clk 0:00:59]} 35. cxd4 {[%clk 0:01:21]}  Qxb4 {[%clk 0:00:59]} 36. Rd1 {[%clk 0:01:20]}  Qb3 {[%clk 0:00:58]} 37. Rd2 {[%clk 0:01:18]}  Qd5 {[%clk 0:00:57]} 38. Qxd5 {[%clk 0:01:13]}  cxd5 {[%clk 0:00:58]} 39. Kf2 {[%clk 0:01:14]}  b4 {[%clk 0:00:54]} 40. Rb2 {[%clk 0:01:09]}  Nxd4 {[%clk 0:00:53]} 41. Rxb4 {[%clk 0:01:09]}  Nf5 {[%clk 0:00:54]} 42. Rb5 {[%clk 0:01:05]}  d4 {[%clk 0:00:53]} 43. Rd5 {[%clk 0:01:05]}  Kf8 {[%clk 0:00:52]} 44. Ke2 {[%clk 0:01:02]}  Ke7 {[%clk 0:00:52]} 45. Kd3 {[%clk 0:01:02]}  Nxh4+ {[%clk 0:00:48]} 46. Kxd4 {[%clk 0:00:59]}  Nxf3+ {[%clk 0:00:49]} 47. Ke3 {[%clk 0:00:59]}  Nh4 {[%clk 0:00:48]} 48. Ra5 {[%clk 0:00:46]}  Nf5+ {[%clk 0:00:45]} 49. Kf4 {[%clk 0:00:46]}  Nd6 {[%clk 0:00:39]} 50. Ra7+ {[%clk 0:00:47]}  Ke6 {[%clk 0:00:40]} 51. Ra6 {[%clk 0:00:47]}  Bf5 {[%clk 0:00:37]} 52. Ra5 {[%clk 0:00:47]}  g6 {[%clk 0:00:37]} 53. Re5+ {[%clk 0:00:48]}  Kd7 {[%clk 0:00:37]} 54. Re1 {[%clk 0:00:49]}  Ne8 {[%clk 0:00:34]} 55. Ke5 {[%clk 0:00:45]}  Ke7 {[%clk 0:00:34]} 56. Ra1 {[%clk 0:00:45]}  Ng7 {[%clk 0:00:33]} 57. Ra7+ {[%clk 0:00:44]}  Bd7 {[%clk 0:00:33]} 58. Ra5 {[%clk 0:00:33]}  h4 {[%clk 0:00:31]} 59. Kf4 {[%clk 0:00:32]}  Nh5+ {[%clk 0:00:22]} 60. Kf3 {[%clk 0:00:31]}  h3 {[%clk 0:00:22]} 61. Ra1 {[%clk 0:00:26]}  Bc6+ {[%clk 0:00:19]} 62. Kg4 {[%clk 0:00:24]}  h2 {[%clk 0:00:20]} 63. Re1+ {[%clk 0:00:17]}  Kf8 {[%clk 0:00:19]} 64. Re2 {[%clk 0:00:14]}  Bf3+ {[%clk 0:00:14]} 0-1


[Site "https://www.chess.com"]